bitfinex/quotes_BTCUSD_20211001
["timestamp","ask_amount","ask_price","bid_price","bid_amount"]
[1633129127200,0.28102007,48005.0,48003.0,0.08667801]
[1633129127399,0.312534,48006.0,48005.0,8.333e-05]
[1633129128000,0.58476208,48006.0,48005.0,8.333e-05]
[1633129128400,0.61676208,48006.0,48005.0,8.333e-05]
[1633129128601,0.344534,48006.0,48005.0,8.333e-05]
[1633129129402,0.35877162,48006.0,48005.0,8.333e-05]
[1633129129800,0.32677162,48006.0,48005.0,8.333e-05]
[1633129130399,0.04523762,48006.0,48005.0,8.333e-05]
[1633129131200,0.32601703,48006.0,48005.0,8.333e-05]
[1633129131601,0.63855203,48006.0,48005.0,8.333e-05]
[1633129132003,0.63073249,48006.0,48005.0,8.333e-05]
[1633129132204,0.63074712,48006.0,48005.0,8.333e-05]
[1633129132604,0.35777262,48006.0,48005.0,8.333e-05]
[1633129132805,0.60381201,48006.0,48005.0,8.333e-05]
[1633129133004,0.60381201,48006.0,48005.0,0.02369088]
[1633129133206,0.5798108,48006.0,48005.0,0.02369088]
[1633129134411,0.8259758,48006.0,48005.0,0.02369088]
[1633129134608,0.81801935,48006.0,48005.0,0.02369088]
[1633129134807,0.5587,48006.0,48005.0,8.333e-05]
[1633129135005,0.8332176,48006.0,48005.0,8.333e-05]
[1633129135207,0.57293769,48006.0,48005.0,8.333e-05]
[1633129135610,0.8356416,48006.0,48005.0,8.333e-05]
[1633129135807,0.80351673,48006.0,48005.0,8.333e-05]
[1633129136006,0.8169074,48006.0,48005.0,8.333e-05]
[1633129136609,0.8489074,48006.0,48005.0,8.333e-05]
[1633129138008,0.54293769,48006.0,48005.0,8.333e-05]
[1633129138410,0.343535,48006.0,48005.0,0.02369088]
[1633129139679,0.61844219,48006.0,48005.0,0.02369088]
[1633129140473,0.63367995,48006.0,48005.0,8.333e-05]
[1633129140875,0.35877276,48006.0,48005.0,8.333e-05]
[1633129141676,0.32677276,48006.0,48005.0,8.333e-05]
[1633129142076,0.60504595,48006.0,48005.0,8.333e-05]
[1633129142279,0.32677276,48006.0,48005.0,8.333e-05]
[1633129142479,0.35877276,48006.0,48005.0,8.333e-05]
[1633129143677,0.54293776,48006.0,48005.0,8.333e-05]
[1633129143877,0.5287,48006.0,48005.0,0.02369088]
[1633129144477,0.5607,48006.0,48005.0,0.02369088]
[1633129145280,0.248165,48006.0,48005.0,0.02620534]
[1633129145480,0.032,48006.0,48005.0,0.02620534]
[1633129145878,0.32515372,48010.0,48005.0,0.00259779]
[1633129146080,0.01423783,48006.0,48005.0,0.00259779]
[1633129148080,0.01423783,48006.0,48005.0,0.00132331]
[1633129148479,0.04923783,48006.0,48005.0,0.00132331]
[1633129149279,0.035,48006.0,48005.0,0.00132331]
[1633129149480,0.035,48006.0,48005.0,0.02493086]
[1633129149681,0.25802748,48007.0,48005.0,0.02493086]
[1633129150085,0.25802748,48007.0,48006.0,7.142e-05]
[1633129150480,0.253165,48007.0,48006.0,7.142e-05]
[1633129150680,0.51266024,48007.0,48006.0,1.142e-05]
[1633129151083,0.253165,48007.0,48006.0,1.142e-05]
[1633129151482,0.26740656,48007.0,48006.0,1.142e-05]
[1633129153886,0.32776047,48007.0,48006.0,1.142e-05]
[1633129154690,0.26740656,48007.0,48006.0,1.142e-05]
[1633129154887,0.38771015,48007.0,48006.0,0.02361451]
[1633129155088,0.31003712,48006.0,48004.0,0.22959625]
[1633129155292,0.216165,48005.0,48004.0,0.22959625]
[1633129155489,0.06038176,48006.0,48004.0,0.2308637]
[1633129155687,0.037,48007.0,48004.0,0.2308637]
[1633129155688,0.09738163,48007.0,48004.0,0.2308637]
[1633129155887,0.06038158,48006.0,48004.0,0.2308637]
[1633129156087,0.37290058,48006.0,48004.0,0.2308637]
[1633129156289,0.216165,48005.0,48004.0,0.00126745]
[1633129156488,0.27655872,48005.0,47998.0,0.25841506]
[1633129156689,0.32012028,48005.0,47998.0,0.25841506]
[1633129156893,0.34614694,48005.0,47998.0,0.25841506]
[1633129157288,0.34614694,48005.0,47999.0,0.21570416]
[1633129157692,0.312542,48002.0,47998.0,0.25841506]
[1633129157891,0.312542,48002.0,47998.0,0.05005706]
[1633129158498,0.351542,48002.0,47998.0,0.05005706]
[1633129158899,0.351542,48002.0,47998.0,0.23590323]
[1633129159495,0.039,48002.0,47998.0,0.23590323]
[1633129159691,0.039,48002.0,47998.0,0.23090323]
[1633129160096,0.039,48002.0,48001.0,0.2212524]
[1633129160293,0.06039713,48005.0,48001.0,0.2212524]
[1633129160499,0.026,48002.0,48001.0,0.2212524]
[1633129160892,0.026,48002.0,48001.0,0.09665523]
[1633129161895,0.026,48002.0,48001.0,0.09292272]
[1633129162497,0.022,48002.0,48001.0,0.11392272]
[1633129163297,0.022,48002.0,48001.0,0.02226749]
[1633129163901,0.06040144,48006.0,48001.0,0.00126749]
[1633129164495,0.09740144,48006.0,48001.0,0.00126749]
[1633129165096,0.09740144,48006.0,48000.0,0.07212861]
[1633129165298,0.09740144,48006.0,48000.0,0.00125118]
[1633129165899,0.06040144,48006.0,48001.0,0.01181715]
[1633129166498,0.09740144,48006.0,48001.0,0.01181715]
[1633129167900,0.08642997,48005.0,48000.0,0.00125118]
[1633129168500,0.12642997,48005.0,48000.0,0.26352954]
[1633129168702,0.06603047,48005.0,48000.0,0.26352954]
[1633129168899,0.06603047,48005.0,48000.0,0.00125118]
[1633129169903,0.02603047,48005.0,48000.0,0.00125118]
[1633129170505,0.06103047,48005.0,48000.0,0.01725118]
[1633129171303,0.035,48005.0,48000.0,0.01725118]
[1633129171505,0.035,48005.0,48001.0,0.01181715]
[1633129171901,0.0603979,48007.0,48001.0,0.01181715]
[1633129172303,0.3729179,48007.0,48001.0,0.01181715]
[1633129172503,0.4089179,48007.0,48001.0,0.01181715]
[1633129173304,0.4089179,48007.0,48000.0,0.00125118]
[1633129173508,0.02603237,48006.0,48000.0,0.00125118]
[1633129173703,0.33855837,48006.0,48000.0,0.00125118]
[1633129174505,0.37455837,48006.0,48000.0,0.00125118]
[1633129174708,0.43495001,48006.0,48000.0,0.00125118]
[1633129175307,0.02,48001.0,48000.0,0.00125118]
[1633129175709,0.02,48001.0,48000.0,0.00132261]
[1633129176510,0.043,48001.0,48000.0,0.03032261]
[1633129177109,0.043,48001.0,48000.0,0.04215091]
[1633129178513,0.042,48001.0,48000.0,0.04115091]
[1633129178913,0.06802143,48001.0,48000.0,0.02932261]
[1633129180115,0.04602143,48001.0,48000.0,0.00132261]
[1633129180716,0.07002143,48001.0,48000.0,0.03032261]
[1633129180981,0.07002143,48001.0,47999.0,0.17867061]
[1633129182116,0.04602143,48001.0,47999.0,0.17867061]
[1633129182316,0.02,48001.0,47999.0,0.17867061]
[1633129182517,0.02,48001.0,48000.0,0.01183053]
[1633129182718,0.044,48001.0,48000.0,0.01183053]
[1633129183119,0.31339163,48001.0,48000.0,0.01183053]
[1633129183321,0.044,48001.0,48000.0,0.01183053]
[1633129183986,0.02,48001.0,48000.0,0.01183053]
[1633129184321,0.02,48001.0,47998.0,0.04505706]
[1633129184521,0.0460215,48001.0,47998.0,0.04005706]
[1633129184722,0.0460215,48001.0,47993.0,0.2098541]
[1633129184723,0.0800215,48001.0,47993.0,0.208371]
[1633129184921,0.26360068,48000.0,47993.0,0.208371]
[1633129185523,0.0800215,48001.0,47993.0,0.208371]
[1633129185920,0.0460215,48001.0,47997.0,0.22356198]
[1633129186720,0.0730215,48001.0,47997.0,0.24556198]
[1633129187923,0.02,48001.0,47997.0,0.2303992]
[1633129188127,0.02,48001.0,47998.0,0.208347]
[1633129188523,0.02,48001.0,47998.0,0.203347]
[1633129188726,0.049,48001.0,47998.0,0.228347]
[1633129189992,0.0260179,48000.0,47998.0,0.203347]
[1633129190727,0.0550179,48000.0,47998.0,0.230347]
[1633129191929,0.0550179,48000.0,47998.0,0.14293433]
[1633129191930,0.0260179,48000.0,47998.0,0.14293433]
[1633129192729,0.0540179,48000.0,47998.0,0.16893433]
[1633129193530,0.028,48000.0,47999.0,0.01183499]
[1633129194132,0.02,48001.0,47999.0,0.01183499]
[1633129194336,0.02,48001.0,48000.0,0.992884]
[1633129194532,0.12076349,48014.0,48001.0,0.77]
[1633129194732,0.15278471,48013.0,48011.0,0.00122792]
[1633129194931,0.1207571,48017.0,48011.0,0.31363892]
[1633129195132,0.00011902,48012.0,48011.0,0.31363892]
[1633129195434,0.00011902,48012.0,48011.0,1.52486515]
[1633129195435,0.02618285,48012.0,48011.0,1.52486515]
[1633129195633,0.18210089,48027.0,48012.0,0.75]
[1633129195634,0.14073581,48025.0,48012.0,0.75]
[1633129195831,0.15275729,48024.0,48023.0,0.00122925]
[1633129196031,0.02,48025.0,48022.0,0.30237028]
[1633129196233,0.00014278,48024.0,48023.0,0.22051533]
[1633129196432,0.00014278,48024.0,48023.0,0.50398784]
[1633129196633,0.05,48025.0,48023.0,0.50398784]
[1633129196835,0.05,48025.0,48024.0,0.28603125]
[1633129197233,0.05015468,48025.0,48024.0,0.28603125]
[1633129198234,0.02015468,48025.0,48024.0,0.28603125]
[1633129198634,0.04715468,48025.0,48024.0,0.21203125]
[1633129199836,0.04715468,48025.0,48024.0,0.18603125]
[1633129200036,0.02015468,48025.0,48024.0,0.18603125]
[1633129200237,0.01738468,48025.0,48024.0,0.18603125]
[1633129200639,0.04338468,48025.0,48024.0,0.21203125]
[1633129202042,0.01738468,48025.0,48024.0,0.18603125]
[1633129202237,0.01738468,48025.0,48023.0,0.53286033]
[1633129202638,0.00014278,48024.0,48023.0,0.53286033]
[1633129204037,0.00014278,48024.0,48023.0,0.74902533]
[1633129204647,0.00098946,48031.0,48024.0,0.966165]
[1633129204845,0.00098946,48031.0,48029.0,0.05398008]
[1633129205109,0.00098946,48031.0,48030.0,1.27973387]
[1633129205311,0.00098946,48031.0,48030.0,0.52973387]
[1633129205508,0.00107274,48031.0,48030.0,0.61332174]
[1633129205713,0.00107274,48031.0,48030.0,0.72670134]
[1633129206510,0.00107274,48031.0,48030.0,0.61332174]
[1633129206713,0.00107274,48031.0,48030.0,0.035]
[1633129208108,0.00107274,48031.0,48029.0,0.00121909]
[1633129208510,7.139e-05,48030.0,48029.0,0.00121909]
[1633129208712,7.139e-05,48030.0,48029.0,0.339291]
[1633129208911,7.139e-05,48030.0,48029.0,0.64771988]
[1633129209512,7.139e-05,48030.0,48029.0,0.6481082]
[1633129209712,7.139e-05,48030.0,48029.0,0.33967932]
[1633129210110,7.139e-05,48030.0,48029.0,0.31267932]
[1633129210512,7.139e-05,48030.0,48029.0,0.80177383]
[1633129210713,7.139e-05,48030.0,48029.0,0.83477383]
[1633129211310,7.139e-05,48030.0,48029.0,0.92364239]
[1633129211513,0.312259,48049.0,48030.0,0.966165]
[1633129211714,0.0012,48051.0,48036.0,0.00120196]
[1633129211911,0.0012,48051.0,48036.0,0.70783206]
[1633129212111,8.327e-05,48037.0,48036.0,0.70783206]
[1633129212311,8.327e-05,48037.0,48036.0,2.23519107]
[1633129212712,0.02221658,48053.0,48042.0,0.208115]
[1633129212912,0.02221658,48053.0,48047.0,0.520287]
[1633129213113,0.02221658,48053.0,48048.0,0.33412957]
[1633129213313,0.02221658,48053.0,48051.0,0.22728736]
[1633129213511,0.02221658,48053.0,48052.0,0.31936931]
[1633129213712,0.02221658,48053.0,48052.0,0.48597931]
[1633129213914,0.01740684,48053.0,48052.0,0.56267907]
[1633129214716,0.01740684,48053.0,48052.0,0.16661]
[1633129214914,0.01740684,48053.0,48052.0,0.00438832]
[1633129216115,0.01740684,48053.0,48052.0,0.26903383]
[1633129216515,0.01740684,48053.0,48052.0,0.58117083]
[1633129216716,0.01740684,48053.0,48052.0,0.59117083]
[1633129217119,0.01740684,48053.0,48052.0,0.32252532]
[1633129217725,0.01740684,48053.0,48052.0,0.59308401]
[1633129218118,0.01740684,48053.0,48052.0,0.58308401]
[1633129218723,0.01740684,48053.0,48052.0,0.60808401]
[1633129220120,0.01740684,48053.0,48052.0,0.58308401]
[1633129220723,0.01740684,48053.0,48052.0,0.61008401]
[1633129221722,0.01740684,48053.0,48052.0,0.82624901]
[1633129222126,0.01740684,48053.0,48052.0,0.79924901]
[1633129222725,0.01740684,48053.0,48052.0,0.82824901]
[1633129223727,0.01740684,48053.0,48052.0,0.34152532]
[1633129223928,0.01740684,48053.0,48052.0,0.02938832]
[1633129224128,0.01740684,48053.0,48047.0,0.208115]
[1633129224328,0.0005301,48052.0,48047.0,0.208115]
[1633129224528,0.00013082,48048.0,48047.0,0.208115]
[1633129224927,0.00013082,48048.0,48046.0,1.0457]
[1633129225129,0.0005301,48047.0,48044.0,1.5724]
[1633129225329,0.00064903,48047.0,48044.0,1.5724]
[1633129225532,0.00010704,48046.0,48044.0,1.5724]
[1633129225728,9.514e-05,48045.0,48040.0,0.208158]
[1633129225929,9.514e-05,48045.0,48037.0,0.1015435]
[1633129225930,0.11865263,48041.0,48037.0,0.1015435]
[1633129226133,0.00127747,48038.0,48035.0,0.01]
[1633129226330,0.0012274,48036.0,48035.0,0.01]
[1633129226531,0.0017575,48036.0,48035.0,0.01]
[1633129227130,0.0017575,48036.0,48030.0,0.17635115]
[1633129227131,0.2249575,48036.0,48030.0,0.17635115]
[1633129227330,0.09600753,48032.0,48030.0,0.17635115]
[1633129227532,0.2639363,48031.0,48026.0,0.7595]
[1633129227928,0.2639363,48031.0,48023.0,2.6756]
[1633129228330,0.2639363,48031.0,48023.0,2.1205]
[1633129228729,0.5763003,48031.0,48023.0,2.1205]
[1633129228930,0.2979363,48031.0,48023.0,2.1205]
[1633129229734,0.2979363,48031.0,48024.0,0.23940852]
[1633129229934,0.38100776,48031.0,48023.0,2.1205]
[1633129230133,0.34700776,48031.0,48023.0,2.1205]
[1633129230533,0.2639363,48031.0,48023.0,2.1205]
[1633129230742,0.00121965,48031.0,48023.0,2.1205]
[1633129230932,0.03521965,48031.0,48023.0,2.1205]
[1633129231131,0.26905642,48030.0,48023.0,2.1205]
[1633129231533,0.26905642,48030.0,48029.0,7.139e-05]
[1633129231733,0.03521965,48031.0,48029.0,7.139e-05]
[1633129231931,0.03521965,48031.0,48027.0,0.15280324]
[1633129232132,0.00121965,48031.0,48030.0,0.02472876]
[1633129232932,0.03521965,48031.0,48027.0,0.36101824]
[1633129233133,0.04831987,48031.0,48027.0,0.36101824]
[1633129233336,0.05314958,48031.0,48027.0,0.36101824]
[1633129234435,0.01914958,48031.0,48027.0,0.36101824]
[1633129234835,0.05414958,48031.0,48027.0,0.36101824]
[1633129235235,0.05414958,48031.0,48023.0,2.1205]
[1633129235433,0.26993025,48030.0,48023.0,2.1205]
[1633129235835,0.05414958,48031.0,48023.0,2.1205]
[1633129236235,0.05414958,48031.0,48026.0,0.20820277]
[1633129236436,0.01914958,48031.0,48026.0,0.20820277]
[1633129236639,0.312371,48030.0,48026.0,0.20820277]
[1633129237435,0.39149151,48030.0,48026.0,0.20820277]
[1633129237835,0.04004936,48031.0,48027.0,0.02473766]
[1633129238039,0.00604936,48031.0,48027.0,0.02473766]
[1633129238436,0.00604936,48031.0,48026.0,0.20820277]
[1633129238437,0.01309479,48030.0,48026.0,0.20820277]
[1633129240837,0.04809479,48030.0,48026.0,0.20820277]
[1633129241840,0.25298086,48029.0,48026.0,0.20820277]
[1633129242040,0.01309479,48030.0,48025.0,0.20822]
[1633129242839,0.05009479,48030.0,48025.0,0.20822]
[1633129243239,0.25346533,48029.0,48025.0,0.20822]
[1633129243440,0.25346533,48029.0,48026.0,0.02473989]
[1633129243844,0.2545031,48029.0,48024.0,0.23808547]
[1633129244040,0.01308936,48028.0,48024.0,0.23808547]
[1633129244841,0.04408936,48028.0,48024.0,0.24108547]
[1633129246351,0.01308936,48028.0,48024.0,0.23808547]
[1633129247022,0.04608936,48028.0,48024.0,0.24008547]
[1633129248143,0.04608936,48028.0,48024.0,0.23808547]
[1633129248346,0.01308936,48028.0,48024.0,0.23808547]
[1633129248951,0.033,48028.0,48024.0,0.02574657]
[1633129249149,0.26307344,48027.0,48024.0,0.02574657]
[1633129249347,0.26307344,48027.0,48024.0,0.001]
[1633129250150,0.26789547,48027.0,48024.0,0.001]
[1633129250350,0.26789547,48027.0,48023.0,0.23692812]
[1633129250949,0.29989547,48027.0,48023.0,0.25292812]
[1633129251350,0.29989547,48027.0,48023.0,0.016]
[1633129251753,0.0005301,48026.0,48023.0,0.016]
[1633129251950,0.0005301,48026.0,48023.0,0.011]
[1633129252151,0.26842557,48027.0,48019.0,0.208247]
[1633129252351,0.26842557,48027.0,48022.0,0.22502904]
[1633129252751,0.26842557,48027.0,48017.0,1.87835156]
[1633129252752,0.312396,48026.0,48017.0,1.87835156]
[1633129253031,0.312396,48026.0,48017.0,1.7919]
[1633129253152,0.0005301,48025.0,48022.0,1.0]
[1633129253553,0.0005301,48026.0,48022.0,1.0]
[1633129254358,0.26789547,48027.0,48022.0,1.0]
[1633129254554,0.26789547,48027.0,48023.0,0.02475548]
[1633129254753,0.0005301,48026.0,48023.0,0.02475548]
[1633129254950,0.0136086,48026.0,48022.0,1.0]
[1633129255350,0.07393623,48026.0,48022.0,1.0]
[1633129255750,0.312413,48025.0,48022.0,1.0]
[1633129255951,0.25542469,48024.0,48022.0,1.0]
[1633129256353,0.0005301,48023.0,48022.0,1.0]
[1633129256758,0.0005301,48023.0,48022.0,1.0000833]
[1633129256955,0.0315301,48023.0,48022.0,1.0000833]
[1633129257155,0.2972834,48023.0,48022.0,1.0000833]
[1633129257358,0.2967533,48023.0,48022.0,1.0000833]
[1633129257754,0.6091693,48023.0,48022.0,1.0000833]
[1633129258354,0.5781693,48023.0,48022.0,1.0000833]
[1633129258955,0.6091693,48023.0,48022.0,1.0000833]
[1633129259959,0.6091693,48023.0,48022.0,1.02484546]
[1633129259960,0.2967533,48023.0,48022.0,1.02484546]
[1633129260358,0.2657533,48023.0,48022.0,1.02484546]
[1633129260558,0.01307123,48023.0,48022.0,1.0000833]
[1633129260758,0.01307123,48023.0,48022.0,1.06238096]
[1633129260960,0.04407123,48023.0,48022.0,1.06238096]
[1633129261160,0.30407744,48023.0,48022.0,1.06238096]
[1633129261358,0.30889521,48023.0,48022.0,0.85513855]
[1633129261758,0.62131821,48023.0,48022.0,0.85513855]
[1633129262358,0.27789521,48023.0,48022.0,0.85513855]
[1633129262963,0.048889,48023.0,48022.0,0.85513855]
[1633129264761,0.33502336,48023.0,48022.0,0.85513855]
[1633129264961,0.64745236,48023.0,48022.0,0.85513855]
[1633129265361,0.63438113,48023.0,48022.0,0.85513855]
[1633129265562,0.63438113,48023.0,48022.0,0.87990071]
[1633129265964,0.64745243,48023.0,48022.0,0.85513855]
[1633129266361,0.61645243,48023.0,48022.0,0.85513855]
[1633129266960,0.64745243,48023.0,48022.0,0.85513855]
[1633129267359,0.36131807,48023.0,48022.0,0.85513855]
[1633129267559,0.36184817,48023.0,48022.0,0.85513855]
[1633129267760,0.36131807,48023.0,48022.0,0.85513855]
[1633129268026,0.04888907,48023.0,48022.0,0.85513855]
[1633129268362,0.01788907,48023.0,48022.0,0.85513855]
[1633129268963,0.04788907,48023.0,48022.0,0.85513855]
[1633129269563,0.05843131,48023.0,48022.0,0.85513855]
[1633129270363,0.02843131,48023.0,48022.0,0.85513855]
[1633129271049,0.04636001,48023.0,48022.0,0.87990071]
[1633129271366,0.04636001,48023.0,48022.0,0.85513855]
[1633129271566,0.05943138,48023.0,48022.0,0.85513855]
[1633129271967,0.05943138,48023.0,48022.0,0.79474499]
[1633129272372,0.02843138,48023.0,48022.0,0.79474499]
[1633129272964,0.05943138,48023.0,48022.0,0.79474499]
[1633129274366,0.02843138,48023.0,48022.0,0.79474499]
[1633129274766,0.02843138,48023.0,48022.0,0.80054499]
[1633129275171,0.06043138,48023.0,48022.0,0.80054499]
[1633129276470,0.06043138,48023.0,48022.0,0.82530715]
[1633129276471,0.01036001,48023.0,48022.0,0.82530715]
[1633129276869,0.01036001,48023.0,48022.0,0.80054499]
[1633129277072,0.05443145,48023.0,48022.0,0.80054499]
[1633129277673,0.47100645,48023.0,48022.0,0.80054499]
[1633129278271,0.44473754,48023.0,48022.0,0.80054499]
[1633129279069,0.47573754,48023.0,48022.0,0.80054499]
[1633129279468,0.53605965,48023.0,48022.0,0.80054499]
[1633129279670,0.47573754,48023.0,48022.0,0.80054499]
[1633129279871,0.53605998,48023.0,48022.0,0.77243855]
[1633129280276,0.47573754,48023.0,48022.0,0.77243855]
[1633129280470,0.50507204,48023.0,48022.0,0.77243855]
[1633129280972,0.53607204,48023.0,48022.0,0.77243855]
[1633129281374,0.63781774,48023.0,48022.0,0.77243855]
[1633129281572,0.85398274,48023.0,48022.0,0.77243855]
[1633129281974,0.8409113,48023.0,48022.0,0.79720071]
[1633129282372,0.8099113,48023.0,48022.0,0.77243855]
[1633129282573,0.82298281,48023.0,48022.0,0.5912473]
[1633129282974,0.85398281,48023.0,48022.0,0.5912473]
[1633129284174,0.85398281,48023.0,48022.0,0.57703471]
[1633129284776,0.82298281,48023.0,48022.0,0.57703471]
[1633129284976,0.85398281,48023.0,48022.0,0.57703471]
[1633129286376,0.82298281,48023.0,48022.0,0.57703471]
[1633129287177,0.85398281,48023.0,48022.0,0.57703471]
[1633129287378,0.8409113,48023.0,48022.0,0.57703471]
[1633129287576,0.8409113,48023.0,48022.0,0.60179687]
[1633129287982,0.85398287,48023.0,48022.0,0.57703471]
[1633129288179,0.85451297,48023.0,48022.0,0.57703471]
[1633129288388,0.82479146,48023.0,48022.0,0.57703471]
[1633129288781,0.84319146,48023.0,48022.0,0.56000841]
[1633129289180,0.87419146,48023.0,48022.0,0.56000841]
[1633129289584,1.09739146,48023.0,48022.0,0.56000841]
[1633129289984,1.09739146,48023.0,48009.0,1.0222]
[1633129289985,0.76,48022.0,48009.0,1.0222]
[1633129290189,0.06035178,48015.0,48009.0,1.0222]
[1633129290382,0.06088347,48014.0,48005.0,0.5656]
[1633129290588,0.06035337,48014.0,48005.0,0.5656]
[1633129290784,0.06035337,48014.0,48001.0,0.02]
[1633129290982,0.312504,48010.0,48007.0,0.22900741]
[1633129291383,0.312504,48010.0,48009.0,0.00015473]
[1633129291782,0.08715951,48013.0,48009.0,0.00015473]
[1633129292183,0.08715951,48013.0,48012.0,0.00011901]
[1633129292384,0.39963351,48013.0,48005.0,0.21566259]
[1633129292987,0.39963351,48013.0,48006.0,0.02482232]
[1633129293188,0.32748751,48013.0,48006.0,0.02482232]
[1633129293385,0.32748751,48013.0,48005.0,0.21566259]
[1633129293583,0.01302396,48012.0,48005.0,0.21566259]
[1633129293786,0.312486,48009.0,48005.0,0.21566259]
[1633129294585,0.312486,48009.0,48005.0,0.21066259]
[1633129295049,0.27116705,48008.0,48005.0,0.21066259]
[1633129295584,0.47951305,48008.0,48005.0,0.21066259]
[1633129296388,0.27116705,48008.0,48005.0,0.21066259]
[1633129296588,0.00473263,48009.0,48005.0,0.21066259]
[1633129297189,0.04073263,48009.0,48005.0,0.21066259]
[1633129297391,0.01036001,48008.0,48006.0,0.07895236]
[1633129297789,0.01036001,48008.0,48006.0,0.0801796]
[1633129298588,0.01036001,48008.0,48007.0,0.55483123]
[1633129298989,0.0233767,48008.0,48007.0,0.53]
[1633129299190,0.0503767,48008.0,48007.0,0.554]
[1633129299589,0.0503767,48008.0,48007.0,0.7772]
[1633129299990,0.0503767,48008.0,48007.0,0.024]
[1633129300392,0.31527612,48008.0,48007.0,0.024]
[1633129301054,0.28827612,48008.0,48006.0,0.00122724]
[1633129301190,0.56603137,48007.0,48006.0,0.00122724]
[1633129301593,0.57639138,48007.0,48006.0,0.00129866]
[1633129301794,0.01036001,48007.0,48006.0,0.00129866]
[1633129303194,0.03836001,48007.0,48006.0,0.02129866]
[1633129303792,0.29714354,48007.0,48006.0,0.02129866]
[1633129304074,0.29714354,48007.0,48006.0,0.04613212]
[1633129304195,0.03836001,48007.0,48006.0,0.04613212]
[1633129304394,0.29484216,48007.0,48006.0,0.02129866]
[1633129304595,0.27985525,48007.0,48006.0,7.142e-05]
[1633129305194,0.31485525,48007.0,48006.0,7.142e-05]
[1633129305595,0.0583731,48007.0,48006.0,7.142e-05]
[1633129305796,0.30813078,48007.0,48006.0,7.142e-05]
[1633129306595,0.0233731,48007.0,48006.0,7.142e-05]
[1633129306996,0.02810579,48007.0,48006.0,7.142e-05]
[1633129307195,0.06010579,48007.0,48006.0,7.142e-05]
[1633129309000,0.02810579,48007.0,48006.0,7.142e-05]
[1633129309195,0.06010579,48007.0,48006.0,7.142e-05]
[1633129309397,0.0470927,48007.0,48006.0,7.142e-05]
[1633129309594,0.0470927,48007.0,48006.0,0.02490488]
[1633129309996,0.06010585,48007.0,48006.0,7.142e-05]
[1633129310396,0.02810585,48007.0,48006.0,7.142e-05]
[1633129311001,0.28217717,48007.0,48006.0,7.142e-05]
[1633129311199,0.31417717,48007.0,48006.0,7.142e-05]
[1633129311999,0.31417717,48007.0,48005.0,0.1503264]
[1633129312198,0.25662847,48006.0,48005.0,0.1503264]
[1633129312399,0.35162847,48006.0,48005.0,0.1503264]
[1633129312798,0.35162847,48006.0,48005.0,0.1253264]
[1633129313197,0.38362847,48006.0,48005.0,0.1253264]
[1633129313599,0.69615047,48006.0,48005.0,0.1253264]
[1633129313799,0.70651048,48006.0,48005.0,0.1253264]
[1633129314399,0.67451048,48006.0,48005.0,0.1253264]
[1633129314601,0.67579123,48006.0,48001.0,0.02]
[1633129314801,0.216165,48002.0,48001.0,0.02]
[1633129315000,0.29726187,48002.0,48001.0,0.02]
[1633129315198,0.31101828,48005.0,48001.0,0.02]
[1633129315598,0.07107003,48004.0,48001.0,0.02]
[1633129315798,0.0184,48003.0,48001.0,0.02]
[1633129315998,0.0005301,48002.0,48001.0,0.02]
[1633129316200,0.0184,48002.0,48001.0,0.02]
[1633129317001,0.49569958,48002.0,48001.0,0.02]
[1633129317200,0.52669958,48002.0,48001.0,0.02]
[1633129317399,0.53705959,48002.0,48001.0,0.02]
[1633129317598,0.53705959,48002.0,48001.0,0.01]
[1633129318400,0.51079274,48002.0,48001.0,0.01]
[1633129319204,0.54179274,48002.0,48001.0,0.01]
[1633129319410,0.76623265,48002.0,48001.0,0.01]
[1633129320606,0.73523265,48002.0,48001.0,0.03485798]
[1633129321005,0.73523265,48002.0,48001.0,0.01]
[1633129321206,0.76723265,48002.0,48001.0,0.01]
[1633129321812,0.50662817,48002.0,48001.0,0.005]
[1633129322206,0.75976428,48002.0,48001.0,0.005]
[1633129322409,0.00331232,47998.0,47996.0,0.0002]
[1633129322612,0.234565,47997.0,47996.0,0.0002]
[1633129322807,0.50579204,47997.0,47996.0,0.0002]
[1633129323209,0.53579204,47997.0,47996.0,0.0002]
[1633129323813,0.76021848,47997.0,47991.0,0.0002]
[1633129324011,0.21744692,47994.0,47991.0,0.0002]
[1633129324207,0.53159059,47994.0,47991.0,0.0002]
[1633129324411,0.83139059,47994.0,47993.0,0.00015479]
[1633129324808,0.90390665,47994.0,47993.0,0.00015479]
[1633129325008,1.12710665,47994.0,47993.0,0.00015479]
[1633129325205,1.15810665,47994.0,47993.0,0.00015479]
[1633129325807,1.47079465,47994.0,47993.0,0.00015479]
[1633129326006,1.48115466,47994.0,47993.0,0.02504622]
[1633129326206,1.48115466,47994.0,47991.0,0.0002]
[1633129326207,0.976365,47993.0,47991.0,0.0002]
[1633129326406,0.5077245,47992.0,47991.0,0.0002]
[1633129326609,0.7314546,47992.0,47991.0,0.0002]
[1633129327206,0.7624546,47992.0,47991.0,0.0002]
[1633129328611,0.7314546,47992.0,47991.0,0.0002]
[1633129329209,0.7614546,47992.0,47991.0,0.0002]
[1633129330209,0.77181461,47992.0,47991.0,0.0002]
[1633129330408,0.74181461,47992.0,47991.0,0.0002]
[1633129331213,0.77181461,47992.0,47991.0,0.0002]
[1633129331614,0.77181461,47992.0,47991.0,0.01265464]
[1633129331817,0.77654878,47992.0,47991.0,0.01265464]
[1633129332013,0.80195286,47992.0,47991.0,0.0002]
[1633129332614,0.424614,47989.0,47980.0,0.96274561]
[1633129332812,0.29262896,47988.0,47980.0,0.96274561]
[1633129333015,0.30298897,47988.0,47980.0,0.96274561]
[1633129333214,0.30298897,47988.0,47987.0,7.145e-05]
[1633129333612,0.30351907,47988.0,47987.0,7.145e-05]
[1633129333813,0.61617807,47988.0,47987.0,7.145e-05]
[1633129334014,0.83234307,47988.0,47987.0,7.145e-05]
[1633129334415,0.83364171,47988.0,47987.0,7.145e-05]
[1633129335215,0.86464171,47988.0,47987.0,7.145e-05]
[1633129335415,1.08226693,47988.0,47987.0,7.145e-05]
[1633129335613,1.05126693,47988.0,47987.0,7.145e-05]
[1633129336416,1.13126693,47988.0,47987.0,7.145e-05]
[1633129337015,1.13126693,47988.0,47987.0,0.01254393]
[1633129337216,1.16226693,47988.0,47987.0,0.01254393]
[1633129337422,1.16226693,47988.0,47987.0,7.145e-05]
[1633129337617,1.18765639,47988.0,47987.0,7.145e-05]
[1633129338017,1.19239091,47988.0,47987.0,7.145e-05]
[1633129338417,1.41559091,47988.0,47987.0,7.145e-05]
[1633129338620,1.38459091,47988.0,47987.0,7.145e-05]
[1633129338824,1.46459091,47988.0,47987.0,7.145e-05]
[1633129339216,1.49559091,47988.0,47987.0,7.145e-05]
[1633129339818,1.79559091,47988.0,47987.0,7.145e-05]
[1633129340219,1.49559091,47988.0,47987.0,7.145e-05]
[1633129340619,0.97273673,47988.0,47987.0,7.145e-05]
[1633129341217,1.00473673,47988.0,47987.0,7.145e-05]